bitfinex-derivatives/quotes_BNBF0:USTF0_20241231
["timestamp","ask_amount","ask_price","bid_price","bid_amount"]
[1735636369141,0.26138023,704.49,702.97,0.28450716]
[1735636369341,0.28389734,704.48,702.97,0.28450716]
[1735636369546,0.26138023,704.47,702.97,0.28450716]
[1735636369742,0.2839054,704.46,702.97,0.28450716]
[1735636369940,0.26136762,704.45,702.97,0.28450716]
[1735636370346,0.2839054,704.46,702.97,0.28450716]
[1735636370842,0.26136899,704.45,702.97,0.28450716]
[1735636371045,0.28391346,704.44,702.97,0.28450716]
[1735636371742,1.48375544,704.43,702.97,0.28450716]
[1735636371943,0.28392152,704.42,702.97,0.28450716]
[1735636373349,0.26138007,704.41,702.97,0.28450716]
[1735636373650,0.28392958,704.4,702.97,0.28450716]
[1735636377052,0.26139512,704.39,702.97,0.28450716]
[1735636377246,0.28393764,704.38,702.97,0.28450716]
[1735636377447,0.26139512,704.37,702.97,0.28450716]
[1735636377650,0.2839457,704.36,702.97,0.28450716]
[1735636377851,0.26139512,704.35,702.97,0.28450716]
[1735636378353,0.28395377,704.34,702.97,0.28450716]
[1735636378656,0.26139512,704.33,702.97,0.28450716]
[1735636378955,0.28396183,704.32,702.97,0.28450716]
[1735636382053,1.48381343,704.31,702.97,0.28450716]
[1735636382555,0.28396989,704.3,702.97,0.28450716]
[1735636386159,0.28396989,704.3,702.98,1.06512945]
[1735636387157,0.28396989,704.3,703.07,1.06512945]
[1735636388263,0.28396989,704.3,703.04,1.06512945]
[1735636389163,0.28396989,704.3,703.06,1.06512945]
[1735636389965,0.28396989,704.3,703.1,1.06512945]
[1735636390959,0.28396989,704.3,703.11,1.06512945]
[1735636392569,0.28396989,704.3,703.1,1.06512945]
[1735636393465,0.28396989,704.3,703.11,1.06512945]
[1735636396069,0.28396989,704.3,703.13,1.06512945]
[1735636397061,0.28396989,704.3,703.15,1.06512945]
[1735636398171,0.28396989,704.3,702.97,1.5626625]
[1735636398172,0.28396989,704.3,703.12,1.06512945]
[1735636399571,0.28396989,704.3,703.08,1.06512945]
[1735636400270,0.28396989,704.3,702.97,0.28450716]
[1735636400271,0.28396989,704.3,703.07,1.06512945]
[1735636401169,0.28396989,704.3,702.97,3.95286858]
[1735636401170,0.28396989,704.3,703.05,1.06512945]
[1735636402271,0.28396989,704.3,702.97,0.28450716]
[1735636402272,0.28396989,704.3,703.09,1.06512945]
[1735636402872,0.28396989,704.3,703.1,1.06512945]
[1735636403872,0.28396989,704.3,703.09,1.06512945]
[1735636406476,0.28396989,704.3,703.08,1.06512945]
[1735636406879,1.48379761,704.29,703.08,1.06512945]
[1735636407279,0.28397796,704.28,703.08,1.06512945]
[1735636407477,0.28397796,704.28,702.97,0.28450716]
[1735636415579,1.3412635,704.28,702.97,0.28450716]
[1735636416782,0.28397796,704.28,702.97,0.28450716]
[1735636419085,0.26142241,704.27,702.97,0.28450716]
[1735636419279,0.26142955,704.26,702.97,0.28450716]
[1735636419479,0.28397796,704.28,702.97,0.28450716]
[1735636419677,0.26142727,704.27,702.97,0.28450716]
[1735636419881,0.28398602,704.26,702.97,0.28450716]
[1735636435403,0.28398602,704.26,703.0,1.06512945]
[1735636436795,0.28398602,704.26,702.99,1.06512945]
[1735636437700,0.28398602,704.26,702.97,0.28450716]
[1735636437701,0.28398602,704.26,702.97,1.34963661]
[1735636440001,0.28398602,704.26,703.04,1.06512945]
[1735636441402,0.28398602,704.26,703.05,1.06512945]
[1735636442202,0.28398602,704.26,702.97,0.28450716]
[1735636454122,0.28397796,704.28,702.97,0.28450716]
[1735636497344,1.3412635,704.28,702.97,0.28450716]
[1735636498349,0.28397796,704.28,702.97,0.28450716]
[1735636500250,1.3412635,704.28,702.97,0.28450716]
[1735636502757,0.28397796,704.28,702.97,0.28450716]
[1735636503750,1.05728554,704.25,702.97,0.28450716]
[1735636503954,0.26145882,704.24,702.97,0.28450716]
[1735636504359,1.05728554,704.25,702.97,0.28450716]
[1735636504556,0.26145712,704.24,702.97,0.28450716]
[1735636504760,1.05728554,704.25,702.97,0.28450716]
[1735636504959,0.26145637,704.24,702.97,0.28450716]
[1735636505259,1.05728554,704.1,702.97,0.28450716]
[1735636506062,1.4841984,704.09,702.97,0.28450716]
[1735636506857,0.28405862,704.08,702.97,0.28450716]
[1735636515069,0.28405862,704.08,703.0,1.06512945]
[1735636516469,0.28405862,704.08,702.97,0.28450716]
[1735636545687,0.28405862,704.08,703.05,1.06512945]
[1735636546687,0.28405862,704.08,703.08,1.06512945]
[1735636547594,0.28405862,704.08,703.07,1.06512945]
[1735636548289,0.28405862,704.08,702.97,0.28450716]
[1735636550396,0.28405862,704.08,702.97,1.34963661]
[1735636552499,0.28405862,704.08,702.97,0.28450716]
[1735636557301,1.48398743,704.07,702.97,0.28450716]
[1735636561305,0.28405862,704.08,702.97,0.28450716]
[1735636564808,1.48355513,704.32,702.97,0.28450716]
[1735636574213,0.28396586,704.31,702.97,0.28450716]
[1735636578823,0.28396586,704.31,702.59,1.06512945]
[1735636579018,0.28396586,704.31,702.6,0.28465698]
[1735636579720,1.05728554,704.3,702.6,0.28465698]
[1735636581024,0.26148071,704.29,702.6,0.28465698]
[1735636581219,0.28396586,704.31,702.6,0.28465698]
[1735636581419,0.26148092,704.3,702.6,0.28465698]
[1735636581721,0.28396586,704.31,702.6,0.28465698]
[1735636581919,0.26147845,704.3,702.6,0.28465698]
[1735636582123,0.28396586,704.31,702.6,0.28465698]
[1735636583827,0.26146697,704.3,702.6,0.28465698]
[1735636584525,0.28396586,704.31,702.6,0.28465698]
[1735636585830,0.28396586,704.31,702.61,1.06512945]
[1735636586632,0.26146676,704.3,702.61,1.06512945]
[1735636587137,0.28396586,704.31,702.6,0.28465698]
[1735636598149,0.28396586,704.31,702.6,1.34978643]
[1735636599043,0.2614763,704.3,702.6,0.28465698]
[1735636599244,0.28396586,704.31,702.6,0.28465698]
[1735636599448,0.28397796,704.28,702.6,0.28465698]
[1735636600748,1.48416676,704.27,702.6,0.28465698]
[1735636602346,0.28399006,704.25,702.6,0.28465698]
[1735636607053,1.05728554,704.24,702.63,1.06512945]
[1735636607753,1.05728554,704.24,702.64,0.28464078]
[1735636607953,0.28399812,704.23,702.64,0.28464078]
[1735636610853,0.28399812,704.23,702.83,1.06512945]
[1735636611752,0.28399812,704.23,702.85,1.06512945]
[1735636613959,0.28399812,704.23,702.96,1.06512945]
[1735636614757,0.28399812,704.23,702.64,0.28464078]
[1735636620762,0.28399812,704.23,702.74,1.06512945]
[1735636621764,0.28399812,704.23,702.73,1.06512945]
[1735636622566,0.28399812,704.23,702.75,1.06512945]
[1735636625267,0.28399812,704.23,702.64,0.28464078]
[1735636638769,0.28399812,704.23,702.71,1.06512945]
[1735636639763,0.28399812,704.23,702.64,0.28464078]
[1735636650075,0.28399812,704.23,702.66,1.06512945]
[1735636650466,0.28399812,704.23,702.67,0.28462863]
[1735636651373,0.28399812,704.23,702.9,1.06512945]
[1735636652575,0.28399812,704.23,702.8,1.06512945]
[1735636653274,0.28399812,704.23,702.82,1.06512945]
[1735636654469,0.28399812,704.23,702.81,1.06512945]
[1735636654974,0.28399812,704.23,702.79,1.06512945]
[1735636657371,0.28399812,704.23,702.72,1.06512945]
[1735636658377,0.28399812,704.23,702.69,1.06512945]
[1735636659272,0.28399812,704.23,702.7,0.28461647]
[1735636662675,0.28399812,704.23,702.77,1.06512945]
[1735636663775,0.28399812,704.23,702.82,1.06512945]
[1735636664780,0.28399812,704.23,702.83,0.28456383]
[1735636668687,0.28399812,704.23,702.98,1.06512945]
[1735636669588,0.28399812,704.23,702.99,1.06512945]
[1735636670688,0.28399812,704.23,703.01,1.06512945]
[1735636673991,0.28399812,704.23,703.01,3.4961434]
[1735636674287,0.28399812,704.23,703.02,2.60832986]
[1735636674492,0.28399812,704.23,703.03,2.43101395]
[1735636674693,0.28399812,704.23,703.03,5.03934381]
[1735636674892,0.28399812,704.23,703.04,5.03934381]
[1735636675095,0.28399812,704.23,703.05,2.60832986]
[1735636675291,0.28399812,704.23,703.05,5.03934381]
[1735636675491,0.28399812,704.23,703.06,5.03934381]
[1735636675691,0.28399812,704.23,703.06,2.43101395]
[1735636675888,0.28399812,704.23,702.84,2.60286726]
[1735636676091,0.28399812,704.23,702.85,2.60286726]
[1735636676289,0.28399812,704.23,702.86,2.60286726]
[1735636676795,0.28399812,704.23,702.87,5.02975006]
[1735636676990,0.28399812,704.23,702.88,2.60286726]
[1735636677192,0.28399812,704.23,702.88,5.02975006]
[1735636677393,0.28399812,704.23,702.89,5.02975006]
[1735636677589,0.28399812,704.23,702.9,1.36917136]
[1735636677791,0.28399812,704.23,702.83,0.28456383]
[1735636684994,0.28399812,704.23,702.87,1.06185157]
[1735636686400,0.28399812,704.23,702.88,1.06185157]
[1735636687198,0.28399812,704.23,703.1,1.06185157]
[1735636688201,0.28399812,704.23,703.08,1.06185157]
[1735636690800,0.28399812,704.23,703.06,1.06185157]
[1735636691898,0.28399812,704.23,703.13,1.06185157]
[1735636693197,0.28399812,704.23,703.14,1.06185157]
[1735636693995,0.28399812,704.23,703.15,1.06185157]
[1735636695101,0.28399812,704.23,703.02,1.06185157]
[1735636695602,0.28399812,704.23,703.03,0.28448288]
[1735636696802,1.48338123,704.5,703.11,1.06185157]
[1735636697403,1.48338123,704.5,703.12,0.28444646]
[1735636701504,1.0496355,705.08,703.12,0.28444646]
[1735636701705,1.4832179,704.61,703.12,0.28444646]
[1735636701902,1.0496355,705.08,703.12,0.28444646]
[1735636702302,1.48310728,704.62,703.12,0.28444646]
[1735636702503,1.0496355,705.16,703.12,0.28444646]
[1735636702800,0.28363161,705.14,703.12,0.28444646]
[1735636703905,1.48279131,705.13,703.12,0.28444646]
[1735636704299,0.28364368,705.11,703.12,0.28444646]
[1735636704706,0.26120987,705.1,703.12,0.28444646]
[1735636704907,0.28365575,705.08,703.12,0.28444646]
[1735636705208,0.26120987,705.07,703.12,0.28444646]
[1735636705411,1.31084537,705.07,703.19,1.06185157]
[1735636705708,0.26120987,705.06,703.19,1.06185157]
[1735636706110,1.0496355,705.07,703.19,1.06185157]
[1735636706310,1.0496355,705.0,703.12,1.34629803]
[1735636707210,0.28365575,705.08,703.12,0.28444646]
[1735636707211,1.33329125,705.08,703.12,0.28444646]
[1735636707408,0.2836638,705.06,703.12,0.28444646]
[1735636712915,0.26121531,705.05,703.12,0.28444646]
[1735636713311,1.0496355,705.03,703.23,1.06185157]
[1735636713518,0.26121531,705.02,703.23,1.06185157]
[1735636713913,1.4828229,705.01,703.23,1.06185157]
[1735636714113,0.26121531,705.0,703.23,1.06185157]
[1735636714313,1.0496355,704.87,703.4,1.06185157]
[1735636714518,0.26121531,704.86,703.4,1.06185157]
[1735636714818,0.28374831,704.85,703.4,1.06185157]
[1735636715017,0.26121531,704.84,703.4,1.06185157]
[1735636715221,0.26121531,704.84,703.18,2.60256781]
[1735636715222,0.26121531,704.84,703.41,1.06185157]
[1735636715813,0.28374831,704.85,703.41,1.06185157]
[1735636716218,0.28374831,704.85,703.39,1.06185157]
[1735636717615,0.28374831,704.85,702.59,1.06185157]
[1735636718624,0.28374831,704.85,702.6,1.06185157]
[1735636719519,0.28374831,704.85,702.65,1.06185157]
[1735636720624,0.28374831,704.85,702.75,1.06185157]
[1735636720920,0.26786763,704.85,702.75,1.06185157]
[1735636721318,0.26786763,704.85,702.76,1.06185157]
[1735636722324,0.26786763,704.85,702.52,1.06185157]
[1735636723323,0.26786763,704.85,702.49,1.06185157]
[1735636724326,1.483318,704.84,702.49,1.06185157]
[1735636724528,1.483318,704.84,702.67,1.06185157]
[1735636724727,0.28376039,704.82,702.67,1.06185157]
[1735636725424,0.28376039,704.82,702.73,1.06185157]
[1735636726425,1.0496355,704.81,703.14,1.06185157]
[1735636726726,0.28377247,704.79,703.14,1.06185157]
[1735636726927,0.26127864,704.78,703.14,1.06185157]
[1735636727325,1.0496355,704.7,703.21,1.06185157]
[1735636727630,0.28381274,704.69,703.21,1.06185157]
[1735636728323,0.28381274,704.69,703.08,1.06185157]
[1735636730325,0.28381274,704.69,703.14,1.06185157]
[1735636731231,0.28381274,704.69,703.18,1.06185157]
[1735636732230,0.28381274,704.69,703.15,0.28443433]
[1735636734430,1.48308621,704.68,703.15,0.28443433]
[1735636736630,2.53272171,704.68,703.19,1.06185157]
[1735636737336,1.48308621,704.68,703.21,1.06185157]
[1735636737836,0.28382079,704.67,703.21,1.06185157]
[1735636738531,0.28382079,704.67,703.15,0.28443433]
[1735636738532,0.28382079,704.67,703.2,1.06185157]
[1735636739536,0.28382079,704.67,703.21,1.06185157]
[1735636740536,0.28382079,704.67,703.18,1.06185157]
[1735636741438,0.28382079,704.67,703.17,1.06185157]
[1735636742634,0.28382079,704.67,703.15,0.28443433]
[1735636754744,0.28382079,704.67,703.28,1.06185157]
[1735636755841,0.28382079,704.67,703.15,0.28443433]
[1735636789070,0.26133266,704.66,703.15,0.28443433]
[1735636789472,1.0496355,704.61,703.15,0.28443433]
[1735636789771,0.26134474,704.6,703.15,0.28443433]
[1735636790270,1.74497893,704.6,703.15,0.28443433]
[1735636790472,1.0496355,704.45,703.15,0.28443433]
[1735636790664,0.26134474,704.44,703.15,0.28443433]
[1735636791468,1.0496355,704.38,703.15,0.28443433]
[1735636792473,1.0496355,704.4,703.15,0.28443433]
[1735636792667,0.28394167,704.37,703.15,0.28443433]
[1735636800376,1.48379761,704.36,703.15,0.28443433]
[1735636801780,0.28394974,704.35,703.15,0.28443433]
[1735636802172,1.48370272,704.34,703.15,0.28443433]
[1735636813288,0.28394974,704.35,703.15,0.28443433]
[1735636823193,0.28394974,704.35,702.8,1.06185157]
[1735636823592,0.28394974,704.35,702.62,1.27422188]
[1735636823593,0.28394974,704.35,702.23,1.06185157]
[1735636823893,1.48398743,704.34,702.25,0.28479886]
[1735636825093,0.28396183,704.32,702.25,0.28479886]
[1735636826094,0.28396183,704.32,702.26,1.06185157]
[1735636826688,0.28396183,704.32,702.28,0.28478669]
[1735636826995,0.28396183,704.32,702.32,1.06185157]
[1735636827893,0.28396183,704.32,702.31,1.06185157]
[1735636828290,0.26144633,704.31,702.31,1.06185157]
[1735636829094,0.26144633,704.31,702.5,1.06185157]
[1735636830396,0.28397393,704.29,702.51,0.28469345]
[1735636831596,0.28397393,704.29,702.51,1.34654502]
[1735636832487,0.28397393,704.29,702.52,1.06185157]
[1735636833296,0.28397393,704.29,702.54,0.28468129]
[1735636850404,0.28397393,704.29,702.57,1.06185157]
[1735636851412,0.28397393,704.29,702.73,1.06185157]
[1735636852311,0.28397393,704.29,702.72,1.06185157]
[1735636853412,0.28397393,704.29,702.93,1.06185157]
[1735636854714,0.28397393,704.29,703.04,1.06185157]
[1735636855910,0.28397393,704.29,703.07,1.06185157]
[1735636856817,0.28397393,704.29,703.16,1.06185157]
[1735636857616,0.28397393,704.29,702.97,1.27422188]
[1735636857617,0.28397393,704.29,703.1,1.06185157]
[1735636858721,0.28397393,704.29,702.99,1.06185157]
[1735636859817,0.28397393,704.29,702.75,1.06185157]
[1735636860022,0.28397393,704.29,702.76,0.28459217]
[1735636862918,0.28397393,704.29,702.84,1.06185157]
[1735636863924,0.28397393,704.29,702.76,1.34644374]
[1735636864821,0.28397393,704.29,702.77,0.28458812]
[1735636866025,0.28397393,704.29,702.79,1.06185157]
[1735636866220,0.28397393,704.29,702.8,0.28457598]
[1735636867419,0.28397393,704.29,702.85,1.06185157]
[1735636868221,0.28397393,704.29,702.89,1.06185157]
[1735636869426,0.28397393,704.29,702.8,1.34642755]
[1735636870332,0.28397393,704.29,702.82,1.06185157]
[1735636871522,0.28397393,704.29,702.8,0.28457598]
[1735636872627,0.28397393,704.29,702.8,1.34642755]
[1735636873729,0.28397393,704.29,702.82,1.06185157]
[1735636874625,0.28397393,704.29,702.8,1.34642755]
[1735636876132,0.28397393,704.29,702.8,0.28457598]
[1735636886337,0.28397393,704.29,702.92,1.06185157]
[1735636886535,0.28397393,704.29,702.93,0.28452335]
[1735636888434,0.28397393,704.29,702.98,1.06185157]
[1735636889539,0.28397393,704.29,702.93,0.28452335]
[1735636890638,0.28397393,704.29,702.93,1.34637492]
[1735636891738,0.28397393,704.29,702.93,0.28452335]
[1735636893240,0.28397393,704.29,702.93,1.34637492]
[1735636893949,0.28397393,704.29,702.93,0.28452335]
[1735636896447,0.28397393,704.29,702.93,1.34637492]
[1735636897346,0.28397393,704.29,702.93,0.28452335]
[1735636907548,0.28397393,704.29,702.45,1.06185157]
[1735636907754,0.28397393,704.29,702.46,0.28471372]
[1735636908756,0.26149583,704.28,702.46,0.28471372]
[1735636908956,0.28397393,704.29,702.46,0.28471372]
[1735636909257,0.26151535,704.28,702.46,0.28471372]
[1735636909757,1.0496355,704.25,702.46,0.28471372]
[1735636910058,0.26153831,704.24,702.46,0.28471372]
[1735636910461,1.74605328,704.24,702.46,0.28471372]
[1735636910756,1.0496355,704.15,702.46,0.28471372]
[1735636910959,0.26153831,704.14,702.46,0.28471372]
[1735636911762,0.26154069,704.13,702.46,0.28471372]
[1735636911959,0.26154069,704.12,702.46,0.28471372]
[1735636912162,0.26154069,704.11,702.46,0.28471372]
[1735636912358,0.26154069,704.1,702.46,0.28471372]
[1735636912554,0.26154069,704.09,702.46,0.28471372]
[1735636912759,0.26154069,704.08,702.46,0.28471372]
[1735636912961,0.26154069,704.07,702.46,0.28471372]
[1735636913156,0.26154069,704.06,702.46,0.28471372]
[1735636913363,1.0496355,704.21,702.46,0.28471372]
[1735636913560,0.26152756,704.2,702.46,0.28471372]
[1735636914160,1.0496355,704.21,702.46,0.28471372]
[1735636914357,0.26153462,704.2,702.46,0.28471372]
[1735636914760,0.26153462,704.19,702.46,0.28471372]
[1735636914963,0.26153462,704.18,702.46,0.28471372]
[1735636915162,0.26153462,704.17,702.46,0.28471372]
[1735636915363,0.26153462,704.16,702.46,0.28471372]
[1735636915564,0.26153462,704.15,702.46,0.28471372]
[1735636915763,0.26153462,704.14,702.46,0.28471372]
[1735636915964,0.26153462,704.13,702.46,0.28471372]
[1735636916163,0.26153462,704.12,702.46,0.28471372]
[1735636916365,0.26153462,704.11,702.46,0.28471372]
[1735636916663,0.26153462,704.1,702.46,0.28471372]
[1735636916859,0.26151971,704.09,702.46,0.28471372]
[1735636917059,0.26151971,704.23,702.46,0.28471372]
[1735636917265,1.48451497,704.24,702.46,0.28471372]
[1735636924264,0.26149347,704.23,702.46,0.28471372]
[1735636924665,0.52300052,704.23,702.46,0.28471372]
[1735636924868,0.26149347,704.23,702.46,0.28471372]
[1735636929776,0.26149347,704.23,702.48,1.06185157]
[1735636930773,0.26149347,704.23,702.51,1.06185157]
[1735636931676,0.26149347,704.23,702.46,1.34656529]
[1735636932781,0.26149347,704.23,702.5,1.06185157]
[1735636934784,1.48451497,704.24,702.5,1.06185157]
[1735636934985,1.48451497,704.24,702.46,1.34656529]
[1735636935985,1.48451497,704.24,702.46,0.28471372]
[1735636936982,1.0496355,704.22,702.46,0.28471372]
[1735636937186,0.26150304,704.21,702.46,0.28471372]
[1735636937884,0.28401425,704.19,702.46,0.28471372]
[1735636938086,1.0496355,704.13,702.5,1.06185157]
[1735636938385,1.0496355,704.13,702.51,0.28469345]
[1735636938684,1.48440944,704.12,702.51,0.28469345]
[1735636939285,1.48440944,704.12,702.55,1.06185157]
[1735636940286,1.48440944,704.12,702.51,0.28469345]
[1735636940885,0.28404652,704.11,702.51,0.28469345]
[1735636942288,0.28404652,704.11,702.54,1.06185157]
[1735636942688,0.28404652,704.11,702.55,0.28467724]
[1735636944385,0.28404652,704.11,702.55,1.34652881]
[1735636945191,0.28404652,704.11,702.55,0.28467724]
[1735636946285,0.28404652,704.11,702.61,1.06185157]
[1735636947184,0.28404652,704.11,702.55,0.28467724]
[1735636949293,0.26153345,704.1,702.55,0.28467724]
[1735636949494,1.0496355,704.08,702.55,0.28467724]
[1735636949787,0.26153345,704.07,702.55,0.28467724]
[1735636950691,1.0496355,703.84,702.55,0.28467724]
[1735636951289,1.48477888,703.83,702.55,0.28467724]
[1735636952096,0.28416356,703.82,702.55,0.28467724]
[1735636953204,0.28416356,703.82,702.55,1.34652881]
[1735636954301,0.28416356,703.82,702.62,1.06185157]
[1735636955298,0.28416356,703.82,702.61,1.06185157]
[1735636956403,0.28416356,703.82,702.59,1.06185157]
[1735636957404,0.28416356,703.82,702.61,1.06185157]
[1735636958604,0.28416356,703.82,702.64,1.06185157]
[1735636959506,0.28416356,703.82,702.55,0.28467724]
[1735636965108,0.28416356,703.82,702.69,1.06185157]
[1735636965912,0.28416356,703.82,702.72,1.06185157]
[1735636966908,0.28416356,703.82,702.74,1.06185157]
[1735636968103,0.28416356,703.82,702.72,1.06185157]
[1735636969112,0.28416356,703.82,702.74,1.06185157]
[1735636970408,0.28416356,703.82,702.82,1.06185157]
[1735636971512,0.28416356,703.82,702.7,1.06185157]
[1735636972810,0.28416356,703.82,702.55,0.28467724]
[1735636979810,0.28416356,703.82,702.62,1.06185157]
[1735636980912,0.28416356,703.82,702.77,1.06185157]
[1735636982115,0.28416356,703.82,702.64,1.06185157]
[1735636982714,0.28416356,703.82,702.64,3.49856136]
[1735636983117,0.28416356,703.82,702.7,1.06185157]
[1735636984022,0.28416356,703.82,702.66,1.06185157]
[1735636985119,0.28416356,703.82,702.7,1.06185157]
[1735636985923,0.28416356,703.82,702.59,2.43670979]
[1735636985924,0.28416356,703.82,702.72,1.06185157]
[1735636987824,0.28416356,703.82,702.66,1.06185157]
[1735636989626,0.28416356,703.82,702.68,1.06185157]
[1735636990623,0.28416356,703.82,702.55,0.28467724]
[1735636990624,0.28416356,703.82,702.72,1.06185157]
[1735636991724,0.28416356,703.82,702.81,1.06185157]
[1735636992524,0.28416356,703.82,702.71,1.06185157]
[1735636993526,0.28416356,703.82,702.68,1.06185157]
[1735636994828,0.28416356,703.82,702.74,1.06185157]
[1735636996628,0.28416356,703.82,702.56,2.43821706]
[1735636996629,0.28416356,703.82,702.72,1.06185157]
[1735636997434,0.28416356,703.82,702.69,1.06185157]
[1735636998534,0.28416356,703.82,702.64,1.06185157]
[1735636999626,0.28416356,703.82,702.63,1.06185157]
[1735637000628,0.28416356,703.82,702.65,1.06185157]
[1735637002833,0.28416356,703.82,702.55,1.34652881]
[1735637004041,0.28416356,703.82,702.55,0.28467724]
[1735637016842,0.28416356,703.82,701.99,1.06185157]
[1735637017147,0.28416356,703.82,701.83,2.61209017]
[1735637017148,0.28416356,703.82,702.01,1.06185157]
[1735637017748,0.28416356,703.82,702.02,0.28489216]
[1735637018352,0.26163319,703.81,702.02,0.28489216]
[1735637018747,0.26163319,703.81,702.07,1.06185157]
[1735637018947,0.28417567,703.79,702.07,1.06185157]
[1735637019347,0.26164184,703.78,702.07,1.06185157]
[1735637019651,1.74689072,703.78,702.08,0.28486782]
[1735637019852,0.28418779,703.76,702.08,0.28486782]
[1735637020046,0.26162864,703.75,702.08,0.28486782]
[1735637020245,0.28418779,703.76,702.08,0.28486782]
[1735637020650,0.26162648,703.75,702.08,0.28486782]
[1735637020850,0.28419586,703.74,702.15,1.06185157]
[1735637021456,0.26162824,703.73,702.15,1.06185157]
[1735637022356,0.28420394,703.72,702.15,1.06185157]
[1735637022552,0.26162824,703.71,702.15,1.06185157]
[1735637022753,0.54585194,703.7,702.15,1.06185157]
[1735637022957,0.26163992,703.69,702.15,1.06185157]
[1735637023153,0.2842201,703.68,702.17,1.06185157]
[1735637024153,0.2842201,703.68,702.08,0.28486782]
[1735637025261,0.2842201,703.68,702.1,1.06185157]
[1735637025661,0.2842201,703.68,702.11,0.28485564]
[1735637029264,0.2842201,703.68,702.12,1.0620973]
[1735637029561,0.2842201,703.68,702.13,0.28484753]
[1735637029761,1.48512211,703.67,702.13,0.28484753]
[1735637032162,0.28422817,703.66,702.13,0.28484753]
[1735637036759,0.28422817,703.66,702.14,1.0620973]
[1735637036964,0.28422817,703.66,702.15,0.28483942]
[1735637037763,0.28422817,703.66,702.16,1.0620973]
[1735637038064,0.28422817,703.66,702.17,0.2848313]
[1735637038766,0.28422817,703.66,702.2,1.0620973]
[1735637039664,0.28422817,703.66,702.17,0.2848313]
[1735637039665,0.28422817,703.66,702.38,1.0620973]
[1735637040462,0.28422817,703.66,702.39,1.0620973]
[1735637041764,0.28422817,703.66,702.52,1.0620973]
[1735637042765,0.28422817,703.66,702.39,1.0620973]
[1735637043663,0.28422817,703.66,702.45,1.0620973]
[1735637044566,0.28422817,703.66,702.48,1.0620973]
[1735637046368,0.28422817,703.66,702.51,1.0620973]
[1735637047463,0.28422817,703.66,702.41,1.0620973]
[1735637048668,1.05942248,703.63,702.39,1.0620973]
[1735637049771,1.05942248,703.58,702.48,1.0620973]
[1735637050370,1.48510098,703.57,702.48,1.0620973]
[1735637050770,1.48510098,703.57,702.52,1.0620973]
[1735637051770,1.48510098,703.57,702.26,2.16844866]
[1735637051771,1.48510098,703.57,702.46,1.0620973]
[1735637052666,1.48510098,703.57,702.04,2.16844866]
[1735637052667,1.48510098,703.57,702.44,1.0620973]
[1735637053571,1.48510098,703.57,702.34,1.0620973]
[1735637054474,1.48510098,703.57,702.33,1.0620973]
[1735637055575,1.48510098,703.57,702.35,1.0620973]
[1735637056479,1.48510098,703.57,702.36,1.0620973]
[1735637056775,0.28426857,703.56,702.36,1.0620973]
[1735637057277,0.28426857,703.56,702.32,1.0620973]
[1735637058179,0.28426857,703.56,702.34,1.0620973]
[1735637059280,0.28426857,703.56,702.22,1.0620973]
[1735637060279,0.28426857,703.56,702.23,1.0620973]
[1735637061277,0.28426857,703.56,702.29,1.0620973]
[1735637062281,0.28426857,703.56,702.17,1.3469286]
[1735637063283,0.28426857,703.56,702.17,0.2848313]
[1735637064779,0.28426857,703.56,702.24,1.0620973]
[1735637065879,0.28426857,703.56,702.25,1.0620973]
[1735637066887,0.28426857,703.56,702.41,1.0620973]
[1735637067587,0.28426857,703.56,702.45,1.0620973]
[1735637068286,0.28426857,703.56,702.42,1.0620973]
[1735637069290,0.28426857,703.56,702.38,1.0620973]
[1735637070384,0.28426857,703.56,702.39,1.0620973]
[1735637071791,0.28426857,703.56,702.46,1.0620973]
[1735637072587,0.28426857,703.56,702.43,1.0620973]
[1735637074290,0.28426857,703.56,702.44,1.0620973]
[1735637075391,0.28426857,703.56,702.17,0.2848313]
[1735637075392,0.28426857,703.56,702.47,1.0620973]
[1735637076693,0.28426857,703.56,702.22,3.6806434]
[1735637076694,0.28426857,703.56,702.49,1.0620973]
[1735637077491,0.28426857,703.56,702.48,1.0620973]
[1735637078495,0.28426857,703.56,702.59,1.0620973]
[1735637079396,0.28426857,703.56,702.57,1.0620973]
[1735637080095,1.48459414,703.9,702.57,1.0620973]
[1735637080691,1.48459414,703.9,702.41,1.0620973]
[1735637081396,1.48459414,703.9,702.41,4.73974541]
[1735637081598,1.48459414,703.9,702.44,1.0620973]
[1735637082300,1.48459414,703.9,702.45,0.28471777]
[1735637083591,1.05942248,704.3,702.45,0.28471777]
[1735637083793,1.48444637,703.97,702.45,0.28471777]
[1735637083994,0.28397393,704.29,702.45,0.28471777]
[1735637084196,1.48443054,703.97,702.45,0.28471777]
[1735637084598,0.28397393,704.29,702.45,1.34681507]
[1735637085702,1.48416676,704.28,702.47,1.0620973]
[1735637086397,1.48416676,704.28,702.49,0.28470156]
[1735637086596,0.28398199,704.27,702.49,0.28470156]
[1735637093303,0.26143442,704.26,702.49,0.28470156]
[1735637094002,0.28399006,704.25,702.55,1.0620973]
[1735637094202,0.26143442,704.24,702.55,1.0620973]
[1735637094402,0.26143442,704.24,702.56,0.28467319]
[1735637094904,0.28399812,704.23,702.56,0.28467319]
[1735637095106,0.26143442,704.22,702.56,0.28467319]
[1735637095306,0.28400619,704.21,702.56,0.28467319]
[1735637095506,0.26143442,704.2,702.56,0.28467319]
[1735637095805,0.28401425,704.19,702.56,0.28467319]